[Event "*** Titled Tuesday 3|2 Blitz"]
[Site "Chess.com"]
[Date "2017.03.07"]
[Round "8"]
[White "Gordima"]
[Black "Izoria123"]
[Result "0-1"]
[WhiteElo "2490"]
[BlackElo "2572"]
[TimeControl "180+2"]
[EndTime "14:53:06 PST"]
[Termination "Izoria123 won by resignation"]

1. Nf3 {[%clk 0:03:02]} 1... g6 {[%clk 0:02:59.9]} 2. c4 {[%clk 0:02:59.8]} 2...
Bg7 {[%clk 0:03:00.1]} 3. g3 {[%clk 0:03:01.2]} 3... Nf6 {[%clk 0:02:58.6]} 4.
Bg2 {[%clk 0:03:02.3]} 4... O-O {[%clk 0:03:00]} 5. O-O {[%clk 0:03:03.8]} 5...
d6 {[%clk 0:03:00.9]} 6. d4 {[%clk 0:03:03.2]} 6... c6 {[%clk 0:03:01.9]} 7. Nc3
{[%clk 0:03:03.8]} 7... Qa5 {[%clk 0:03:02.9]} 8. e4 {[%clk 0:03:05]} 8... e5
{[%clk 0:03:03.5]} 9. Be3 {[%clk 0:03:04.6]} 9... Ng4 {[%clk 0:03:02.5]} 10. Bc1
{[%clk 0:02:59.7]} 10... exd4 {[%clk 0:02:53.2]} 11. Nxd4 {[%clk 0:02:59]} 11...
Ne5 {[%clk 0:02:43]} 12. Nb3 {[%clk 0:02:49.6]} 12... Qb4 {[%clk 0:02:40.2]} 13.
c5 {[%clk 0:02:21.9]} 13... dxc5 {[%clk 0:02:40.8]} 14. Be3 {[%clk 0:02:22.7]}
14... Na6 {[%clk 0:02:37.8]} 15. a3 {[%clk 0:02:12.5]} 15... Qc4 {[%clk
0:02:34.7]} 16. f4 {[%clk 0:02:02.3]} 16... Ng4 {[%clk 0:02:33.3]} 17. Bc1
{[%clk 0:00:46.3]} 17... Be6 {[%clk 0:02:32.2]} 18. f5 {[%clk 0:00:47.2]} 18...
gxf5 {[%clk 0:01:32.4]} 19. exf5 {[%clk 0:00:48.1]} 19... Rad8 {[%clk 0:01:33]}
20. Qe1 {[%clk 0:00:49.1]} 20... Bxf5 {[%clk 0:01:24.1]} 21. Rxf5 {[%clk
0:00:42.4]} 21... Qxb3 {[%clk 0:01:25.4]} 22. Rg5 {[%clk 0:00:36.5]} 22... f5
{[%clk 0:01:22.8]} 23. Qe7 {[%clk 0:00:24.3]} 23... Qf7 {[%clk 0:01:17.5]} 24.
Qxf7+ {[%clk 0:00:20.9]} 24... Kxf7 {[%clk 0:01:19.4]} 25. Rxf5+ {[%clk
0:00:20.4]} 25... Kg8 {[%clk 0:01:18.7]} 26. Rxf8+ {[%clk 0:00:20]} 26... Rxf8
{[%clk 0:01:18.6]} 27. h3 {[%clk 0:00:18.4]} 27... Bd4+ {[%clk 0:01:17.7]} 28.
Kh1 {[%clk 0:00:19.8]} 28... Nf2+ {[%clk 0:01:18.7]} 29. Kh2 {[%clk 0:00:21.2]}
29... Nd3 {[%clk 0:01:20.6]} 30. Bh6 {[%clk 0:00:21]} 30... Rf6 {[%clk
0:01:20.8]} 31. Bg5 {[%clk 0:00:20.3]} 31... Rf2 {[%clk 0:01:21.8]} 32. Ne4
{[%clk 0:00:19.6]} 32... Rxb2 {[%clk 0:01:21.7]} 33. Rf1 {[%clk 0:00:21]} 33...
h5 {[%clk 0:01:13.8]} 34. h4 {[%clk 0:00:14.4]} 34... Ne5 {[%clk 0:01:14.4]} 35.
Kh3 {[%clk 0:00:15.6]} 35... Ng4 {[%clk 0:01:15.3]} 36. Rf5 {[%clk 0:00:09.6]}
36... c4 {[%clk 0:01:08.8]} 37. Bf4 {[%clk 0:00:10.4]} 37... Nf2+ {[%clk
0:01:07.8]} 38. Nxf2 {[%clk 0:00:09.3]} 38... Rxf2 {[%clk 0:01:09.7]} 39. Rxh5
{[%clk 0:00:10.6]} 39... c3 {[%clk 0:01:09.7]} 40. Rg5+ {[%clk 0:00:09.8]} 40...
Kf7 {[%clk 0:01:09.2]} 41. Be4 {[%clk 0:00:06.9]} 41... Nc5 {[%clk 0:01:09.2]}
42. Bg6+ {[%clk 0:00:06.6]} 42... Kf6 {[%clk 0:01:09.9]} 43. h5 {[%clk 0:00:08]}
43... c2 {[%clk 0:01:08.1]} 44. Rf5+ {[%clk 0:00:09.3]} 44... Ke6 {[%clk
0:01:06.2]} 45. h6 {[%clk 0:00:03.1]} 45... Rxf4 {[%clk 0:01:05.1]} 46. Rxf4
{[%clk 0:00:04.5]} 46... c1=Q {[%clk 0:01:06]} 47. h7 {[%clk 0:00:05.7]} 47...
Qh1+ {[%clk 0:01:06.3]} 48. Kg4 {[%clk 0:00:07.1]} 48... Be5 {[%clk 0:01:05.8]}
49. Rf8 {[%clk 0:00:07.5]} 49... Nd7 {[%clk 0:01:06.4]} 50. Re8+ {[%clk
0:00:08.4]} 50... Kd6 {[%clk 0:01:07.3]} 51. Kf5 {[%clk 0:00:05.8]} 51... Qh6
{[%clk 0:01:04]} 52. Re6+ {[%clk 0:00:05.7]} 52... Kc7 {[%clk 0:01:04.3]} 53.
Re8 {[%clk 0:00:06.1]} 53... Qg7 {[%clk 0:01:03.1]} 54. Rg8 {[%clk 0:00:06.4]}
54... Qf6+ {[%clk 0:01:03.8]} 55. Kg4 {[%clk 0:00:07.8]} 55... Qe7 {[%clk
0:01:04.3]} 56. Kf5 {[%clk 0:00:06.9]} 56... Bg7 {[%clk 0:01:04.7]} 57. Kg4
{[%clk 0:00:05.1]} 57... Ne5+ {[%clk 0:01:05.4]} 58. Kh5 {[%clk 0:00:04.5]}
58... Nxg6 {[%clk 0:01:06.4]} 59. Kxg6 {[%clk 0:00:05.6]} 59... Qf6+ {[%clk
0:01:07.7]} 60. Kh5 {[%clk 0:00:06.5]} 60... Qh6+ {[%clk 0:01:09]} 0-1

[Event "*** Titled Tuesday 3|2 Blitz"]
[Site "Chess.com"]
[Date "2017.03.07"]
[Round "8"]
[White "arna"]
[Black "Vrolijk"]
[Result "1-0"]
[WhiteElo "2260"]
[BlackElo "2308"]
[TimeControl "180+2"]
[EndTime "14:53:08 PST"]
[Termination "arna won by resignation"]

1. e4 {[%clk 0:03:02]} 1... c6 {[%clk 0:02:37.5]} 2. d4 {[%clk 0:03:01.8]} 2...
d5 {[%clk 0:02:38.4]} 3. Nc3 {[%clk 0:03:03.5]} 3... dxe4 {[%clk 0:02:34.6]} 4.
Nxe4 {[%clk 0:03:05.4]} 4... Bf5 {[%clk 0:02:36.1]} 5. Ng3 {[%clk 0:03:05]} 5...
Bg6 {[%clk 0:02:37.1]} 6. h4 {[%clk 0:03:06.6]} 6... h6 {[%clk 0:02:34.1]} 7.
Nh3 {[%clk 0:03:08]} 7... Nd7 {[%clk 0:02:29.7]} 8. Nf4 {[%clk 0:03:08.6]} 8...
Bh7 {[%clk 0:02:29.1]} 9. Bc4 {[%clk 0:03:09.6]} 9... e6 {[%clk 0:02:27.5]} 10.
O-O {[%clk 0:03:04.5]} 10... Ngf6 {[%clk 0:02:28.4]} 11. Re1 {[%clk 0:02:41.9]}
11... Be7 {[%clk 0:02:26.3]} 12. Bxe6 {[%clk 0:02:39.8]} 12... fxe6 {[%clk
0:02:24.3]} 13. Nxe6 {[%clk 0:02:40.2]} 13... Qa5 {[%clk 0:02:22.5]} 14. Bd2
{[%clk 0:02:22.1]} 14... Qb6 {[%clk 0:02:14.6]} 15. Nxg7+ {[%clk 0:02:13.1]}
15... Kf7 {[%clk 0:02:10.5]} 16. Qe2 {[%clk 0:01:54.4]} 16... Rhe8 {[%clk
0:01:55.6]} 17. Nxe8 {[%clk 0:01:33.3]} 17... Rxe8 {[%clk 0:01:57.5]} 18. Bxh6
{[%clk 0:01:26.3]} 18... Bd6 {[%clk 0:01:24.8]} 19. Qc4+ {[%clk 0:01:22.9]}
19... Nd5 {[%clk 0:01:25.6]} 20. Rxe8 {[%clk 0:01:19.3]} 20... Kxe8 {[%clk
0:01:27.5]} 21. Re1+ {[%clk 0:01:15.8]} 21... Kd8 {[%clk 0:01:28.3]} 22. Qb3
{[%clk 0:00:46.1]} 22... Qxd4 {[%clk 0:01:19.3]} 23. Ne2 {[%clk 0:00:07]} 23...
Qxh4 {[%clk 0:01:16.9]} 24. Qh3 {[%clk 0:00:05.6]} 24... Qxh3 {[%clk 0:01:15.5]}
25. gxh3 {[%clk 0:00:07.5]} 25... Ne5 {[%clk 0:01:14.1]} 26. Nd4 {[%clk
0:00:07.2]} 26... Kc8 {[%clk 0:00:52]} 27. Bg7 {[%clk 0:00:06.8]} 27... Nd7
{[%clk 0:00:39.1]} 28. c3 {[%clk 0:00:05.6]} 28... Bg6 {[%clk 0:00:38.7]} 29. h4
{[%clk 0:00:06.3]} 29... Nf4 {[%clk 0:00:39.6]} 30. Ne6 {[%clk 0:00:05]} 30...
Nd3 {[%clk 0:00:38]} 31. Rd1 {[%clk 0:00:03.1]} 31... Bb8 {[%clk 0:00:32.4]} 32.
b3 {[%clk 0:00:04.3]} 32... N7e5 {[%clk 0:00:33.4]} 33. Kf1 {[%clk 0:00:03.5]}
33... b5 {[%clk 0:00:30.6]} 34. Bxe5 {[%clk 0:00:03.3]} 34... Bxe5 {[%clk
0:00:31.5]} 35. h5 {[%clk 0:00:04.4]} 35... Bf5 {[%clk 0:00:30.6]} 36. Nd4
{[%clk 0:00:05.2]} 36... Bh3+ {[%clk 0:00:28.6]} 37. Ke2 {[%clk 0:00:05.2]}
37... Nf4+ {[%clk 0:00:28.6]} 38. Kf3 {[%clk 0:00:06]} 38... Nxh5 {[%clk
0:00:24.2]} 39. Nxc6 {[%clk 0:00:07.3]} 39... Bxc3 {[%clk 0:00:24.3]} 40. Nxa7+
{[%clk 0:00:06.6]} 40... Kb7 {[%clk 0:00:25]} 41. Nxb5 {[%clk 0:00:08.5]} 41...
Be5 {[%clk 0:00:24.2]} 42. Nd6+ {[%clk 0:00:07.9]} 42... Kc6 {[%clk 0:00:22.7]}
43. Nc4 {[%clk 0:00:09.1]} 43... Bc7 {[%clk 0:00:21.7]} 44. Rh1 {[%clk
0:00:09.2]} 44... Nf4 {[%clk 0:00:22.6]} 45. Ne3 {[%clk 0:00:08.2]} 45... Be6
{[%clk 0:00:21.6]} 46. Rc1+ {[%clk 0:00:08.9]} 46... Kd7 {[%clk 0:00:22.5]} 47.
Rxc7+ {[%clk 0:00:08.8]} 47... Kxc7 {[%clk 0:00:24.4]} 48. Kxf4 {[%clk
0:00:10.6]} 48... Kb6 {[%clk 0:00:23.5]} 49. Ke5 {[%clk 0:00:11.5]} 49... Bg8
{[%clk 0:00:24.3]} 50. f4 {[%clk 0:00:11.7]} 50... Kb5 {[%clk 0:00:25.6]} 51.
Nd5 {[%clk 0:00:11.6]} 51... Kc5 {[%clk 0:00:26.2]} 52. Nf6 {[%clk 0:00:10.7]}
52... Bf7 {[%clk 0:00:27.1]} 53. f5 {[%clk 0:00:09.7]} 53... Kb4 {[%clk
0:00:27.7]} 54. Nd5+ {[%clk 0:00:08.5]} 54... Ka3 {[%clk 0:00:28.3]} 55. b4
{[%clk 0:00:09.5]} 55... Kxa2 {[%clk 0:00:28.1]} 56. b5 {[%clk 0:00:10.9]} 56...
Be8 {[%clk 0:00:29.2]} 57. b6 {[%clk 0:00:12.2]} 57... Bc6 {[%clk 0:00:31.1]}
58. f6 {[%clk 0:00:13.7]} 1-0

[Event "*** Titled Tuesday 3|2 Blitz"]
[Site "Chess.com"]
[Date "2017.03.07"]
[Round "8"]
[White "amaidel"]
[Black "TenisMaster"]
[Result "0-1"]
[WhiteElo "2450"]
[BlackElo "2595"]
[TimeControl "180+2"]
[EndTime "14:53:09 PST"]
[Termination "TenisMaster won by checkmate"]

1. Nf3 {[%clk 0:03:02]} 1... d5 {[%clk 0:02:56.4]} 2. d4 {[%clk 0:03:02.3]} 2...
Nf6 {[%clk 0:02:56.4]} 3. c4 {[%clk 0:03:02.5]} 3... e6 {[%clk 0:02:55.7]} 4. g3
{[%clk 0:03:03]} 4... Bb4+ {[%clk 0:02:54.7]} 5. Bd2 {[%clk 0:03:02.9]} 5... Bd6
{[%clk 0:02:55.7]} 6. Bg2 {[%clk 0:03:02.8]} 6... O-O {[%clk 0:02:56.4]} 7. O-O
{[%clk 0:03:03.2]} 7... c6 {[%clk 0:02:56.6]} 8. Qc2 {[%clk 0:02:57.6]} 8...
Nbd7 {[%clk 0:02:50.4]} 9. Bf4 {[%clk 0:02:56]} 9... Bxf4 {[%clk 0:02:47.4]} 10.
gxf4 {[%clk 0:02:57.9]} 10... b6 {[%clk 0:02:48.2]} 11. e3 {[%clk 0:02:57.1]}
11... Bb7 {[%clk 0:02:36.8]} 12. Nbd2 {[%clk 0:02:53.1]} 12... Rc8 {[%clk
0:02:37.1]} 13. b4 {[%clk 0:02:44.1]} 13... c5 {[%clk 0:01:59.1]} 14. bxc5
{[%clk 0:02:44.4]} 14... bxc5 {[%clk 0:02:00.1]} 15. Rab1 {[%clk 0:02:42.7]}
15... Qc7 {[%clk 0:01:59.9]} 16. cxd5 {[%clk 0:02:31.4]} 16... Bxd5 {[%clk
0:01:59.5]} 17. Rfc1 {[%clk 0:02:29.8]} 17... Qd8 {[%clk 0:01:33.2]} 18. Qa4
{[%clk 0:02:12.8]} 18... Ne4 {[%clk 0:00:55]} 19. Nb3 {[%clk 0:01:31.3]} 19...
c4 {[%clk 0:00:52.1]} 20. Na5 {[%clk 0:01:27.3]} 20... Nb6 {[%clk 0:00:50.3]}
21. Qa3 {[%clk 0:01:19.3]} 21... g5 {[%clk 0:00:46.7]} 22. fxg5 {[%clk
0:00:58.2]} 22... Nxg5 {[%clk 0:00:47.3]} 23. Ne5 {[%clk 0:00:55.7]} 23... Ne4
{[%clk 0:00:43.6]} 24. f3 {[%clk 0:00:53.6]} 24... Nd6 {[%clk 0:00:33.7]} 25. e4
{[%clk 0:00:52.6]} 25... Ba8 {[%clk 0:00:34.8]} 26. Qe3 {[%clk 0:00:46.3]} 26...
f6 {[%clk 0:00:34.5]} 27. Ng4 {[%clk 0:00:44]} 27... Kh8 {[%clk 0:00:35.7]} 28.
f4 {[%clk 0:00:23.8]} 28... Rg8 {[%clk 0:00:35]} 29. h3 {[%clk 0:00:21.2]} 29...
h5 {[%clk 0:00:33.1]} 30. f5 {[%clk 0:00:22.4]} 30... Qf8 {[%clk 0:00:25.5]} 31.
Nh6 {[%clk 0:00:17.3]} 31... Rg5 {[%clk 0:00:24.3]} 32. h4 {[%clk 0:00:18.5]}
32... Rxg2+ {[%clk 0:00:21.7]} 33. Kxg2 {[%clk 0:00:19]} 33... Nxe4 {[%clk
0:00:22.7]} 34. Kh2 {[%clk 0:00:18.5]} 34... Qd6+ {[%clk 0:00:22.5]} 35. Kh3
{[%clk 0:00:17.5]} 35... Rc7 {[%clk 0:00:16]} 36. Rg1 {[%clk 0:00:17.5]} 36...
Kh7 {[%clk 0:00:12.1]} 37. Rg6 {[%clk 0:00:13.3]} 37... Nd5 {[%clk 0:00:10.4]}
38. Nf7 {[%clk 0:00:10.5]} 38... Nxe3 {[%clk 0:00:09.7]} 39. Nxd6 {[%clk
0:00:10.9]} 39... Nxd6 {[%clk 0:00:10.6]} 40. Rb8 {[%clk 0:00:11.6]} 40... Ndxf5
{[%clk 0:00:10.9]} 41. Rgg8 {[%clk 0:00:11.5]} 41... Rg7 {[%clk 0:00:11.6]} 42.
Rh8+ {[%clk 0:00:11.9]} 42... Kg6 {[%clk 0:00:12.5]} 43. Rxa8 {[%clk 0:00:13.2]}
43... Ne7 {[%clk 0:00:13.1]} 44. Rxa7 {[%clk 0:00:13.3]} 44... Kf5 {[%clk
0:00:14.1]} 45. Re8 {[%clk 0:00:12.1]} 45... N3d5 {[%clk 0:00:13.8]} 46. Nc6
{[%clk 0:00:13.1]} 46... Nf4+ {[%clk 0:00:11.2]} 47. Kh2 {[%clk 0:00:14.3]}
47... Rg2+ {[%clk 0:00:12]} 48. Kh1 {[%clk 0:00:15.4]} 48... c3 {[%clk
0:00:11.5]} 49. Nxe7+ {[%clk 0:00:15.5]} 49... Ke4 {[%clk 0:00:11.2]} 50. Rc7
{[%clk 0:00:16.5]} 50... Rc2 {[%clk 0:00:10]} 51. Rec8 {[%clk 0:00:17.1]} 51...
Ne2 {[%clk 0:00:09.8]} 52. a4 {[%clk 0:00:17.8]} 52... Kf3 {[%clk 0:00:09.6]}
53. a5 {[%clk 0:00:17.4]} 53... Ng3+ {[%clk 0:00:10.6]} 54. Kg1 {[%clk
0:00:17.9]} 54... Rc1+ {[%clk 0:00:11.9]} 55. Kh2 {[%clk 0:00:17.5]} 55... Rh1#
{[%clk 0:00:12.9]} 0-1

[Event "*** Titled Tuesday 3|2 Blitz"]
[Site "Chess.com"]
[Date "2017.03.07"]
[Round "8"]
[White "Hanging_pointer"]
[Black "saraswathii"]
[Result "1/2-1/2"]
[WhiteElo "2276"]
[BlackElo "2165"]
[TimeControl "180+2"]
[EndTime "14:53:09 PST"]
[Termination "Game drawn by agreement"]

1. e4 {[%clk 0:03:02]} 1... c5 {[%clk 0:02:58.5]} 2. Nf3 {[%clk 0:03:02.4]} 2...
e6 {[%clk 0:02:57.1]} 3. d4 {[%clk 0:03:03.3]} 3... cxd4 {[%clk 0:02:56.4]} 4.
Nxd4 {[%clk 0:03:05.2]} 4... Nf6 {[%clk 0:02:51.6]} 5. Nc3 {[%clk 0:03:05.9]}
5... Nc6 {[%clk 0:02:51.5]} 6. Ndb5 {[%clk 0:03:06.5]} 6... Bb4 {[%clk
0:02:50.9]} 7. a3 {[%clk 0:03:07.5]} 7... Bxc3+ {[%clk 0:02:51]} 8. Nxc3 {[%clk
0:03:09.4]} 8... d5 {[%clk 0:02:51.9]} 9. exd5 {[%clk 0:03:11.3]} 9... exd5
{[%clk 0:02:53.1]} 10. Bd3 {[%clk 0:03:12.7]} 10... d4 {[%clk 0:02:54]} 11. Ne2
{[%clk 0:03:13.2]} 11... O-O {[%clk 0:02:35]} 12. O-O {[%clk 0:03:13.8]} 12...
Qd5 {[%clk 0:02:33]} 13. c4 {[%clk 0:02:57.2]} 13... dxc3 {[%clk 0:02:16.9]} 14.
Nxc3 {[%clk 0:02:52.4]} 14... Qh5 {[%clk 0:01:59]} 15. Qxh5 {[%clk 0:02:33.2]}
15... Nxh5 {[%clk 0:01:59]} 16. Re1 {[%clk 0:02:19.9]} 16... Be6 {[%clk
0:01:55]} 17. Be3 {[%clk 0:02:18.8]} 17... a6 {[%clk 0:01:49.1]} 18. Be4 {[%clk
0:02:16.6]} 18... Rac8 {[%clk 0:01:42.8]} 19. Rad1 {[%clk 0:02:06.6]} 19... Nf6
{[%clk 0:01:40.9]} 20. Bf3 {[%clk 0:02:07.3]} 20... Bg4 {[%clk 0:01:25.7]} 21.
Bxg4 {[%clk 0:02:03.7]} 21... Nxg4 {[%clk 0:01:27.6]} 22. Rd7 {[%clk 0:01:57.7]}
22... b5 {[%clk 0:01:27.3]} 23. h3 {[%clk 0:01:54.8]} 23... Nge5 {[%clk
0:01:20.2]} 24. Rb7 {[%clk 0:01:42.2]} 24... Nc4 {[%clk 0:01:15.4]} 25. Bc1
{[%clk 0:01:42.1]} 25... Rfe8 {[%clk 0:01:11.4]} 26. Rxe8+ {[%clk 0:01:41.3]}
26... Rxe8 {[%clk 0:01:13.3]} 27. Kf1 {[%clk 0:01:42.3]} 27... Nd4 {[%clk
0:01:06.4]} 28. b3 {[%clk 0:01:20.8]} 28... Nxb3 {[%clk 0:00:55.1]} 29. Bf4
{[%clk 0:01:17.7]} 29... Nc5 {[%clk 0:00:49.9]} 30. Ra7 {[%clk 0:01:11.4]} 30...
Nd3 {[%clk 0:00:49.4]} 31. Be3 {[%clk 0:01:12.7]} 31... Nxa3 {[%clk 0:00:36.7]}
32. Rxa6 {[%clk 0:01:09.9]} 32... b4 {[%clk 0:00:37.8]} 33. Ne4 {[%clk
0:01:05.6]} 33... Nc4 {[%clk 0:00:20.8]} 34. Ke2 {[%clk 0:01:01.3]} 34... Nde5
{[%clk 0:00:14.8]} 35. Nd2 {[%clk 0:00:38.3]} 35... Nxd2 {[%clk 0:00:13.2]} 36.
Kxd2 {[%clk 0:00:36.8]} 36... f6 {[%clk 0:00:12.8]} 37. Bd4 {[%clk 0:00:34.1]}
37... Rd8 {[%clk 0:00:12.4]} 38. Ke3 {[%clk 0:00:32.9]} 38... Nc4+ {[%clk
0:00:12.8]} 39. Ke4 {[%clk 0:00:32]} 39... Nd6+ {[%clk 0:00:12.3]} 40. Kf3
{[%clk 0:00:27.3]} 40... Nb5 {[%clk 0:00:12.2]} 41. Bc5 {[%clk 0:00:24.1]} 41...
b3 {[%clk 0:00:12.6]} 42. Rb6 {[%clk 0:00:25.2]} 42... Nc3 {[%clk 0:00:09.7]}
43. Rxb3 {[%clk 0:00:24.1]} 43... Rd3+ {[%clk 0:00:09.5]} 44. Kg4 {[%clk
0:00:22.6]} 44... Kf7 {[%clk 0:00:07.6]} 45. Rb7+ {[%clk 0:00:15.8]} 45... Kg6
{[%clk 0:00:08.3]} 46. Be3 {[%clk 0:00:15.1]} 46... Nd5 {[%clk 0:00:08.6]} 47.
Kf3 {[%clk 0:00:13.6]} 47... h5 {[%clk 0:00:09.5]} 48. Ke4 {[%clk 0:00:14.4]}
48... Rd1 {[%clk 0:00:10]} 49. g4 {[%clk 0:00:14.5]} 49... hxg4 {[%clk
0:00:10.7]} 50. hxg4 {[%clk 0:00:16.4]} 50... Nxe3 {[%clk 0:00:11.5]} 51. fxe3
{[%clk 0:00:17.3]} 51... Rf1 {[%clk 0:00:12]} 52. Rb5 {[%clk 0:00:16.9]} 52...
Rg1 {[%clk 0:00:12.5]} 53. Kf3 {[%clk 0:00:18]} 53... Rf1+ {[%clk 0:00:13.7]}
54. Kg3 {[%clk 0:00:19.4]} 54... Re1 {[%clk 0:00:13.7]} 55. Kf2 {[%clk
0:00:20.6]} 55... Rc1 {[%clk 0:00:14]} 1/2-1/2

[Event "*** Titled Tuesday 3|2 Blitz"]
[Site "Chess.com"]
[Date "2017.03.07"]
[Round "8"]
[White "ZEN-22"]
[Black "GMOratovsky"]
[Result "1-0"]
[WhiteElo "2364"]
[BlackElo "2369"]
[TimeControl "180+2"]
[EndTime "14:53:13 PST"]
[Termination "ZEN-22 won by checkmate"]

1. e3 {[%clk 0:03:02]} 1... d5 {[%clk 0:02:56.9]} 2. Ne2 {[%clk 0:03:03.9]} 2...
e5 {[%clk 0:02:57.2]} 3. d4 {[%clk 0:03:04.8]} 3... Nc6 {[%clk 0:02:55.8]} 4.
Nd2 {[%clk 0:03:03.3]} 4... Nf6 {[%clk 0:02:53.5]} 5. dxe5 {[%clk 0:03:03.9]}
5... Nxe5 {[%clk 0:02:54.1]} 6. Nf3 {[%clk 0:03:04.2]} 6... Nxf3+ {[%clk
0:02:51.1]} 7. gxf3 {[%clk 0:03:06.1]} 7... Bd6 {[%clk 0:02:50.7]} 8. Bg2 {[%clk
0:03:06.7]} 8... O-O {[%clk 0:02:48.8]} 9. Qd3 {[%clk 0:02:57.3]} 9... c6 {[%clk
0:02:49.2]} 10. c4 {[%clk 0:02:55.4]} 10... dxc4 {[%clk 0:02:47.5]} 11. Qxc4
{[%clk 0:02:56.5]} 11... Be6 {[%clk 0:02:46.1]} 12. Qc2 {[%clk 0:02:56.3]} 12...
Re8 {[%clk 0:02:10.8]} 13. Bd2 {[%clk 0:02:52.9]} 13... Qb6 {[%clk 0:02:06.4]}
14. Bc3 {[%clk 0:02:49.1]} 14... Nd5 {[%clk 0:02:05.9]} 15. O-O {[%clk
0:02:47.9]} 15... Nxc3 {[%clk 0:02:04.4]} 16. Nxc3 {[%clk 0:02:43.3]} 16... Qa5
{[%clk 0:01:54.9]} 17. Rad1 {[%clk 0:02:41]} 17... Bc7 {[%clk 0:01:52.2]} 18. f4
{[%clk 0:02:39.7]} 18... Rad8 {[%clk 0:01:45.7]} 19. Rxd8 {[%clk 0:02:39]} 19...
Rxd8 {[%clk 0:01:47.6]} 20. Rd1 {[%clk 0:02:38.6]} 20... Rxd1+ {[%clk
0:01:45.4]} 21. Qxd1 {[%clk 0:02:36.9]} 21... h6 {[%clk 0:01:42]} 22. Be4 {[%clk
0:02:34.9]} 22... Qb4 {[%clk 0:01:35.9]} 23. Qc2 {[%clk 0:02:30.4]} 23... Bd8
{[%clk 0:01:36.1]} 24. Bf5 {[%clk 0:02:28.1]} 24... Bxf5 {[%clk 0:01:20.7]} 25.
Qxf5 {[%clk 0:02:28.3]} 25... Qxb2 {[%clk 0:01:22.2]} 26. Ne4 {[%clk 0:01:55]}
26... Qb1+ {[%clk 0:01:19.4]} 27. Kg2 {[%clk 0:01:55.7]} 27... Qxa2 {[%clk
0:01:19.9]} 28. Qd7 {[%clk 0:01:54.1]} 28... Qd5 {[%clk 0:01:18.3]} 29. Qe8+
{[%clk 0:01:54.2]} 29... Kh7 {[%clk 0:01:18.5]} 30. f3 {[%clk 0:01:50]} 30... f5
{[%clk 0:01:06.8]} 31. Ng3 {[%clk 0:01:47.5]} 31... Bf6 {[%clk 0:01:00.3]} 32.
e4 {[%clk 0:01:46.2]} 32... Qd2+ {[%clk 0:00:57]} 33. Kh3 {[%clk 0:01:46.6]}
33... Qxf4 {[%clk 0:00:57.4]} 34. exf5 {[%clk 0:01:47.6]} 34... Qg5 {[%clk
0:00:48.7]} 35. f4 {[%clk 0:01:47.8]} 35... Qh4+ {[%clk 0:00:45.3]} 36. Kg2
{[%clk 0:01:48.9]} 36... Qg4 {[%clk 0:00:24.5]} 37. Qe4 {[%clk 0:01:39.5]} 37...
Qd1 {[%clk 0:00:22.9]} 38. Qe8 {[%clk 0:01:39.3]} 38... Qd6 {[%clk 0:00:19.6]}
39. Qf7 {[%clk 0:01:34.1]} 39... Bc3 {[%clk 0:00:17.1]} 40. Qxb7 {[%clk
0:01:33.3]} 40... a5 {[%clk 0:00:17.1]} 41. Qb3 {[%clk 0:01:30.4]} 41... Qd2+
{[%clk 0:00:16.8]} 42. Kh3 {[%clk 0:01:30.7]} 42... Bd4 {[%clk 0:00:16.5]} 43.
Qe6 {[%clk 0:01:29.3]} 43... Qe3 {[%clk 0:00:13.6]} 44. Qg6+ {[%clk 0:01:30]}
44... Kg8 {[%clk 0:00:15.1]} 45. Qxc6 {[%clk 0:01:26.3]} 45... Bf6 {[%clk
0:00:12.3]} 46. Qd5+ {[%clk 0:01:26.1]} 46... Kh8 {[%clk 0:00:12.6]} 47. Qxa5
{[%clk 0:01:23.7]} 47... Qxf4 {[%clk 0:00:09]} 48. Qa8+ {[%clk 0:01:24]} 48...
Kh7 {[%clk 0:00:09.8]} 49. Qe4 {[%clk 0:01:25.4]} 49... Qf2 {[%clk 0:00:08.5]}
50. Qg4 {[%clk 0:01:26.1]} 50... Qa2 {[%clk 0:00:08.3]} 51. Qg6+ {[%clk
0:01:26.9]} 51... Kh8 {[%clk 0:00:08.8]} 52. Qe8+ {[%clk 0:01:27.8]} 52... Qg8
{[%clk 0:00:09.1]} 53. Qg6 {[%clk 0:01:27.2]} 53... Qb3 {[%clk 0:00:07.9]} 54.
Qg4 {[%clk 0:01:28.3]} 54... Qd5 {[%clk 0:00:08.6]} 55. Ne4 {[%clk 0:01:29]}
55... Qf7 {[%clk 0:00:08.5]} 56. Qg6 {[%clk 0:01:28.9]} 56... Qe7 {[%clk
0:00:07.6]} 57. Nxf6 {[%clk 0:01:28.8]} 57... Qxf6 {[%clk 0:00:08.6]} 58. Qxf6
{[%clk 0:01:29.2]} 58... gxf6 {[%clk 0:00:10.5]} 59. Kg4 {[%clk 0:01:30.4]}
59... Kg7 {[%clk 0:00:11.5]} 60. Kf4 {[%clk 0:01:30.8]} 60... Kf7 {[%clk
0:00:12.8]} 61. Ke4 {[%clk 0:01:31.9]} 61... Ke7 {[%clk 0:00:14.2]} 62. Kd5
{[%clk 0:01:32.8]} 62... Kd7 {[%clk 0:00:15.5]} 63. h3 {[%clk 0:01:33.9]} 63...
h5 {[%clk 0:00:11.2]} 64. h4 {[%clk 0:01:35]} 64... Ke7 {[%clk 0:00:11.5]} 65.
Kc6 {[%clk 0:01:36.2]} 65... Kf7 {[%clk 0:00:12]} 66. Kd6 {[%clk 0:01:37.4]}
66... Kf8 {[%clk 0:00:12.7]} 67. Ke6 {[%clk 0:01:36.8]} 67... Kg7 {[%clk
0:00:13.7]} 68. Ke7 {[%clk 0:01:38.3]} 68... Kh6 {[%clk 0:00:13.8]} 69. Kxf6
{[%clk 0:01:39.4]} 69... Kh7 {[%clk 0:00:15.1]} 70. Ke7 {[%clk 0:01:40.9]} 70...
Kh6 {[%clk 0:00:16.5]} 71. f6 {[%clk 0:01:40.1]} 71... Kg6 {[%clk 0:00:17.7]}
72. Ke6 {[%clk 0:01:41.5]} 72... Kh7 {[%clk 0:00:18.7]} 73. f7 {[%clk
0:01:42.5]} 73... Kh6 {[%clk 0:00:20.1]} 74. Ke7 {[%clk 0:01:43.2]} 74... Kg6
{[%clk 0:00:22]} 75. f8=Q {[%clk 0:01:43.6]} 75... Kh7 {[%clk 0:00:23.9]} 76.
Qf6 {[%clk 0:01:43.3]} 76... Kg8 {[%clk 0:00:23.5]} 77. Qg5+ {[%clk 0:01:44.2]}
77... Kh8 {[%clk 0:00:21.7]} 78. Kf7 {[%clk 0:01:46.1]} 78... Kh7 {[%clk
0:00:22.3]} 79. Qxh5# {[%clk 0:01:47]} 1-0